[Event "21st Alekhine FIDE 2017"]
[Site "Voronezh"]
[Date "2017.06.12"]
[Round "1"]
[White "Manukovsky, Vladimir"]
[Black "Vlasova, Zlata"]
[Result "1-0"]
[ECO "E70"]
[WhiteElo "2200"]
[BlackElo "1819"]
[Annotator "ChessBase"]
[PlyCount "111"]
[EventDate "2017.??.??"]
[EventType "swiss"]
[EventCountry "RUS"]
[SourceTitle "playchess.com"]
[Source "ChessBase"]
[SourceQuality "1"]
[TimeControl "40/5400+30:1800+30"]

1. c4 {[%emt 0:00:00]} Nf6 {[%emt 0:00:11]} 2. Nc3 {[%emt 0:00:00]} g6 {[%emt 0:00:17]} 3. e4 {[%emt 0:00:14]} d6 {[%emt 0:00:24]} 4. d4 {[%emt 0:00:21]} Bg7 {[%emt 0:00:11]} 5. Bg5 {[%emt 0:01:37]} h6 {[%emt 0:00:17]} 6. Bh4 {[%emt 0:00:16]} O-O {[%emt 0:00:22]} 7. h3 {[%emt 0:00:17]} c5 {[%emt 0:00:58]} 8. Nf3 {[%emt 0:01:06]} cxd4 {[%emt 0:01:21]} 9. Nxd4 {[%emt 0:00:11]} Nc6 {[%emt 0:00:28]} 10. Nc2 {[%emt 0:00:57]} Qa5 {[%emt 0:02:02]} 11. Qd2 {[%emt 0:00:14]} Be6 {[%emt 0:01:14]} 12. Rc1 {[%emt 0:01:05]} Rac8 {[%emt 0:00:56]} 13. Ne3 {[%emt 0:00:30]} Ne5 {[%emt 0:01:34]} 14. b3 {[%emt 0:00:41]} a6 {[%emt 0:03:02]} 15. f4 {[%emt 0:02:29]} Nc6 {[%emt 0:00:36]} 16. Bd3 {[%emt 0:00:29]} Nb4 {[%emt 0:02:09]} 17. Bb1 {[%emt 0:02:50]} b5 {[%emt 0:01:24]} 18. f5 {[%emt 0:01:52]} g5 {[%emt 0:06:52]} 19. Bf2 {[%emt 0:01:31]} Bd7 {[%emt 0:02:45]} 20. Ncd5 {[%emt 0:00:38]} Nfxd5 {[%emt 0:01:34]} 21. Nxd5 {[%emt 0:00:33]} Rfe8 {[%emt 0:03:25]} 22. Bb6 {[%emt 0:01:16]} Qa3 {[%emt 0:00:40]} 23. Nxb4 {[%emt 0:00:49]} bxc4 {[%emt 0:00:35]} 24. Nc2 {[%emt 0:00:26]} Qb2 {[%emt 0:01:21]} 25. O-O {[%emt 0:03:43]} cxb3 {[%emt 0:02:52]} 26. axb3 {[%emt 0:01:43]} Qxb3 {[%emt 0:02:06]} 27. Bd4 {[%emt 0:00:20]} Bb5 {[%emt 0:02:28]} 28. Rf3 {[%emt 0:01:08]} Bxd4+ {[%emt 0:01:08]} 29. Nxd4 {[%emt 0:01:09]} Rxc1+ {[%emt 0:01:35]} 30. Qxc1 {[%emt 0:00:03]} Qb4 {[%emt 0:00:23]} 31. Nxb5 {[%emt 0:00:35]} Qxb5 {[%emt 0:00:26]} 32. f6 {[%emt 0:00:32]} Qe5 {[%emt 0:01:56]} 33. fxe7 {[%emt 0:01:51]} Rxe7 {[%emt 0:01:19]} 34. Qc8+ {[%emt 0:00:10]} Kg7 {[%emt 0:00:37]} 35. Qxa6 {[%emt 0:00:08]} Qd4+ {[%emt 0:00:40]} 36. Kh1 {[%emt 0:00:40]} Ra7 {[%emt 0:01:44]} 37. Qd3 {[%emt 0:02:51]} Qe5 {[%emt 0:02:48]} 38. Rf5 {[%emt 0:00:33]} Qa1 {[%emt 0:00:58]} 39. Kh2 {[%emt 0:00:31]} Rb7 {[%emt 0:01:52]} 40. Bc2 {[%emt 0:00:16]} Qa2 {[%emt 0:31:28]} 41. Qd4+ {[%emt 0:30:36]} Kg8 {[%emt 0:00:59]} 42. Bd3 {[%emt 0:00:12]} Rb2 {[%emt 0:00:56]} 43. Bf1 {[%emt 0:00:24]} Rd2 {[%emt 0:01:16]} 44. Qf6 {[%emt 0:01:52]} Qe6 {[%emt 0:02:49]} 45. Rxg5+ {[%emt 0:00:46]} hxg5 {[%emt 0:00:23]} 46. Qxg5+ {[%emt 0:00:03]} Qg6 {[%emt 0:01:37]} 47. Qxd2 {[%emt 0:00:03]} Qxe4 {[%emt 0:00:16]} 48. Qxd6 {[%emt 0:00:14]} f5 {[%emt 0:00:38]} 49. Bd3 {[%emt 0:00:12]} Qh4 {[%emt 0:01:59]} 50. Qg6+ {[%emt 0:00:25]} Kh8 {[%emt 0:00:24]} 51. Qxf5 {[%emt 0:00:04]} Qh6 {[%emt 0:01:03]} 52. Qe5+ {[%emt 0:00:21]} Kg8 {[%emt 0:00:32]} 53. Bc4+ {[%emt 0:00:16]} Kh7 {[%emt 0:00:33]} 54. Qe7+ {[%emt 0:00:26]} Kh8 {[%emt 0:00:29]} 55. Qe8+ {[%emt 0:00:08]} Kh7 {[%emt 0:00:23]} 56. Qg8# {[%emt 0:00:02]} 1-0

[Event "21st Alekhine FIDE 2017"]
[Site "Voronezh"]
[Date "2017.06.12"]
[Round "1"]
[White "Shishkin, Aleksey A"]
[Black "Savoskin, Vladimir"]
[Result "1-0"]
[ECO "A06"]
[WhiteElo "2191"]
[BlackElo "1810"]
[Annotator "ChessBase"]
[PlyCount "125"]
[EventDate "2017.??.??"]
[EventType "swiss"]
[EventCountry "RUS"]
[SourceTitle "playchess.com"]
[Source "ChessBase"]
[SourceQuality "1"]
[TimeControl "40/5400+30:1800+30"]

1. Nf3 d5 2. d4 e6 3. c4 c6 4. Qc2 Nf6 5. Bg5 Bb4+ 6. Nbd2 Nbd7 7. a3 Qa5 8. Rc1 Bxd2+ 9. Bxd2 Qc7 10. g3 Ne4 11. Bg2 Nxd2 12. Qxd2 O-O 13. O-O Re8 14. Rfd1 Nb6 15. Qa5 Qd8 16. b3 Qf6 17. e3 Nd7 18. Qc3 h6 19. b4 Nb6 20. Ne5 Nd7 21. e4 Nb6 22. Rd3 Qd8 23. c5 Nd7 24. Nxd7 Bxd7 25. e5 f6 26. exf6 Qxf6 27. Rf3 Qg6 28. Re1 Rf8 29. Rxf8+ Rxf8 30. f4 h5 31. h4 Rf6 32. Kh2 Qf7 33. Re5 Rf5 34. Re3 g6 35. Bh3 Rf6 36. Re5 Kg7 37. Qe3 Kh7 38. Rg5 Kg7 39. Qe5 Kh7 40. Qb8 Be8 41. Kg1 a6 42. Kf2 Qe7 43. Ke3 Rf8 44. Re5 Bf7 45. Qa7 Re8 46. Qb6 Qd7 47. Qa5 Bg8 48. Qa4 Bf7 49. Qc2 Kg7 50. Bf1 Rf8 51. Bd3 Be8 52. Kd2 Rf6 53. Kc3 Qc7 54. Qe2 Bf7 55. Rg5 Qd7 56. Qxh5 Rf5 57. Bxf5 exf5 58. Qe2 Kh7 59. Qe5 Kg8 60. h5 Kh7 61. Kd2 Qd8 62. hxg6+ Bxg6 63. Qe6 1-0

[Event "21st Alekhine FIDE 2017"]
[Site "Voronezh"]
[Date "2017.06.12"]
[Round "1"]
[White "Koshelev, Vladimir"]
[Black "Khajrutdinov, Ildar"]
[Result "0-1"]
[ECO "A01"]
[WhiteElo "2175"]
[BlackElo "2087"]
[Annotator "ChessBase"]
[PlyCount "70"]
[EventDate "2017.??.??"]
[EventType "swiss"]
[EventCountry "RUS"]
[SourceTitle "playchess.com"]
[Source "ChessBase"]
[SourceQuality "1"]
[TimeControl "40/5400+30:1800+30"]

1. b3 {[%emt 0:00:34]} e5 {[%emt 0:00:38]} 2. Bb2 {[%emt 0:00:25]} Nc6 {[%emt 0:00:17]} 3. e3 {[%emt 0:00:45]} Nf6 {[%emt 0:04:04]} 4. c4 {[%emt 0:01:26]} Be7 {[%emt 0:04:38]} 5. Nc3 {[%emt 0:03:31]} d5 {[%emt 0:05:15]} 6. cxd5 {[%emt 0:01:01]} Nxd5 {[%emt 0:00:17]} 7. a3 {[%emt 0:00:06]} O-O {[%emt 0:00:53]} 8. Nf3 {[%emt 0:08:17]} Be6 {[%emt 0:03:17]} 9. b4 {[%emt 0:04:32]} Nxc3 {[%emt 0:20:03]} 10. Bxc3 {[%emt 0:03:22]} e4 {[%emt 0:02:23]} 11. Nd4 {[%emt 0:01:44]} Nxd4 {[%emt 0:00:20]} 12. Bxd4 {[%emt 0:06:22]} Bf6 {[%emt 0:00:58]} 13. Bc3 {[%emt 0:03:32]} Qe7 {[%emt 0:06:21]} 14. Qc2 {[%emt 0:01:11]} Bf5 {[%emt 0:01:31]} 15. Be2 {[%emt 0:04:36]} Rfd8 {[%emt 0:04:48]} 16. O-O {[%emt 0:02:20]} Rd7 {[%emt 0:01:33]} 17. Rfd1 {[%emt 0:03:10]} Rad8 {[%emt 0:00:54]} 18. Ra2 {[%emt 0:05:04]} Qe6 {[%emt 0:02:36]} 19. Bxf6 {[%emt 0:05:29]} Qxf6 {[%emt 0:00:18]} 20. h3 {[%emt 0:00:26]} Qe5 {[%emt 0:06:06]} 21. a4 {[%emt 0:06:32]} a5 {[%emt 0:06:46]} 22. b5 {[%emt 0:01:49]} Qe7 {[%emt 0:08:26]} 23. Qc3 {[%emt 0:02:13]} b6 {[%emt 0:06:13]} 24. Rc2 {[%emt 0:02:06]} h6 {[%emt 0:03:40]} 25. Qb2 {[%emt 0:03:35]} Be6 {[%emt 0:03:02]} 26. Bc4 {[%emt 0:05:23]} Bxc4 {[%emt 0:00:58]} 27. Rxc4 {[%emt 0:00:07]} Rd3 {[%emt 0:00:29]} 28. Qc2 {[%emt 0:01:09]} R8d7 {[%emt 0:00:12]} 29. Kf1 {[%emt 0:00:45]} Qe5 {[%emt 0:01:14]} 30. g3 {[%emt 0:02:50]} Qe6 {[%emt 0:01:11]} 31. Ke1 {[%emt 0:04:56]} Qxh3 {[%emt 0:01:27]} 32. Rxc7 {[%emt 0:00:31]} Qh1+ {[%emt 0:00:19]} 33. Ke2 {[%emt 0:00:01]} Qf3+ {[%emt 0:00:20]} 34. Ke1 {[%emt 0:00:02]} R7d5 {[%emt 0:00:31]} 35. g4 {[%emt 0:10:02]} Qxg4 {[%emt 0:00:51]} 0-1

[Event "21st Alekhine FIDE 2017"]
[Site "Voronezh"]
[Date "2017.06.12"]
[Round "1"]
[White "Peschansky, Mikhail"]
[Black "Stepanischev, Gregory"]
[Result "1-0"]
[ECO "A10"]
[WhiteElo "2162"]
[BlackElo "1799"]
[Annotator "ChessBase"]
[PlyCount "75"]
[EventDate "2017.??.??"]
[EventType "swiss"]
[EventCountry "RUS"]
[SourceTitle "playchess.com"]
[Source "ChessBase"]
[SourceQuality "1"]
[TimeControl "40/5400+30:1800+30"]

1. c4 {[%emt 0:00:00]} g6 {[%emt 0:00:09]} 2. g3 {[%emt 0:00:00]} Bg7 {[%emt 0:00:10]} 3. Bg2 {[%emt 0:00:00]} Nf6 {[%emt 0:00:15]} 4. e4 {[%emt 0:00:45]} d6 {[%emt 0:00:13]} 5. Ne2 {[%emt 0:00:35]} e5 {[%emt 0:01:20]} 6. O-O {[%emt 0:01:27]} Nc6 {[%emt 0:01:28]} 7. Nbc3 {[%emt 0:01:21]} O-O {[%emt 0:00:21]} 8. h3 {[%emt 0:02:06]} Nd7 {[%emt 0:09:01]} 9. d3 {[%emt 0:02:48]} Nc5 {[%emt 0:01:18]} 10. Be3 {[%emt 0:07:20]} Ne6 {[%emt 0:02:11]} 11. Rb1 {[%emt 0:01:18]} a5 {[%emt 0:04:24]} 12. Nb5 {[%emt 0:05:55]} Rb8 {[%emt 0:10:43]} 13. Qd2 {[%emt 0:03:49]} Re8 {[%emt 0:04:19]} 14. f4 {[%emt 0:03:24]} exf4 {[%emt 0:11:03]} 15. gxf4 {[%emt 0:02:09]} f5 {[%emt 0:04:02]} 16. d4 {[%emt 0:04:24]} Ne7 {[%emt 0:03:32]} 17. d5 {[%emt 0:08:57]} Nc5 {[%emt 0:06:49]} 18. Bxc5 {[%emt 0:04:16]} dxc5 {[%emt 0:00:13]} 19. e5 {[%emt 0:00:04]} Bd7 {[%emt 0:03:24]} 20. Nec3 {[%emt 0:02:20]} Nc8 {[%emt 0:00:55]} 21. Rbd1 {[%emt 0:01:32]} Bxb5 {[%emt 0:05:14]} 22. Nxb5 {[%emt 0:00:45]} g5 {[%emt 0:03:50]} 23. d6 {[%emt 0:06:27]} cxd6 {[%emt 0:00:20]} 24. exd6 {[%emt 0:00:11]} Nb6 {[%emt 0:01:32]} 25. b3 {[%emt 0:00:29]} a4 {[%emt 0:04:30]} 26. fxg5 {[%emt 0:00:30]} axb3 {[%emt 0:00:58]} 27. axb3 {[%emt 0:00:56]} Re5 {[%emt 0:00:52]} 28. Rfe1 {[%emt 0:03:01]} Nd7 {[%emt 0:00:36]} 29. Rxe5 {[%emt 0:00:58]} Bxe5 {[%emt 0:00:13]} 30. h4 {[%emt 0:02:16]} Qf8 {[%emt 0:02:47]} 31. Bxb7 {[%emt 0:02:52]} Bd4+ {[%emt 0:03:14]} 32. Nxd4 {[%emt 0:00:20]} Rxb7 {[%emt 0:01:01]} 33. Ne6 {[%emt 0:02:32]} Qe8 {[%emt 0:02:55]} 34. Qd5 {[%emt 0:01:22]} Ra7 {[%emt 0:03:12]} 35. Nxc5+ {[%emt 0:00:27]} Kh8 {[%emt 0:01:19]} 36. Ne6 {[%emt 0:02:21]} Qg6 {[%emt 0:01:35]} 37. Qd4+ {[%emt 0:01:08]} Kg8 {[%emt 0:00:32]} 38. Nf4 {[%emt 0:00:35]} 1-0

[Event "21st Alekhine FIDE 2017"]
[Site "Voronezh"]
[Date "2017.06.12"]
[Round "1"]
[White "Ioffe, Evgeny"]
[Black "Egorov, Alexey"]
[Result "0-1"]
[ECO "B17"]
[WhiteElo "2155"]
[BlackElo "1794"]
[Annotator "ChessBase"]
[PlyCount "74"]
[EventDate "2017.??.??"]
[EventType "swiss"]
[EventCountry "RUS"]
[SourceTitle "playchess.com"]
[Source "ChessBase"]
[SourceQuality "1"]
[TimeControl "40/5400+30:1800+30"]

1. e4 {[%emt 0:00:00]} c6 {[%emt 0:00:10]} 2. Nc3 {[%emt 0:00:22]} d5 {[%emt 0:00:09]} 3. d4 {[%emt 0:00:41]} dxe4 {[%emt 0:00:09]} 4. Nxe4 {[%emt 0:00:09]} Nd7 {[%emt 0:00:06]} 5. Nf3 {[%emt 0:00:53]} Ngf6 {[%emt 0:00:12]} 6. Ng3 {[%emt 0:03:17]} e6 {[%emt 0:03:47]} 7. Bc4 {[%emt 0:01:12]} Nb6 {[%emt 0:04:58]} 8. Bd3 {[%emt 0:05:12]} c5 {[%emt 0:00:45]} 9. O-O {[%emt 0:00:30]} cxd4 {[%emt 0:09:49]} 10. Nxd4 {[%emt 0:04:11]} Bc5 {[%emt 0:00:29]} 11. Nf3 {[%emt 0:01:53]} O-O {[%emt 0:00:26]} 12. b3 {[%emt 0:01:54]} Bd7 {[%emt 0:03:23]} 13. Bb2 {[%emt 0:01:10]} Bc6 {[%emt 0:00:22]} 14. Ne5 {[%emt 0:02:00]} Nbd7 {[%emt 0:07:07]} 15. Nxc6 {[%emt 0:01:31]} bxc6 {[%emt 0:00:09]} 16. Qf3 {[%emt 0:03:10]} Qc7 {[%emt 0:02:31]} 17. Rad1 {[%emt 0:02:39]} Rfd8 {[%emt 0:00:34]} 18. Rfe1 {[%emt 0:16:37]} Bd6 {[%emt 0:02:17]} 19. Qe2 {[%emt 0:05:44]} Bb4 {[%emt 0:03:54]} 20. c3 {[%emt 0:02:04]} Bd6 {[%emt 0:00:05]} 21. Nf1 {[%emt 0:02:46]} Rab8 {[%emt 0:03:19]} 22. h3 {[%emt 0:00:35]} Be5 {[%emt 0:20:31]} 23. Qc2 {[%emt 0:03:30]} h6 {[%emt 0:00:52]} 24. Nd2 {[%emt 0:01:28]} Nd5 {[%emt 0:02:57]} 25. Nf3 {[%emt 0:03:13]} Bf6 {[%emt 0:00:20]} 26. Bh7+ {[%emt 0:11:10]} Kh8 {[%emt 0:00:51]} 27. Be4 {[%emt 0:01:33]} Nc5 {[%emt 0:03:38]} 28. Bxd5 {[%emt 0:03:52]} cxd5 {[%emt 0:00:35]} 29. Ba1 {[%emt 0:04:25]} e5 {[%emt 0:16:40]} 30. Qf5 {[%emt 0:02:27]} e4 {[%emt 0:00:08]} 31. Nd4 {[%emt 0:00:36]} Rb6 {[%emt 0:00:18]} 32. Qg4 {[%emt 0:04:04]} Nd3 {[%emt 0:00:33]} 33. Re2 {[%emt 0:02:36]} Bxd4 {[%emt 0:02:06]} 34. cxd4 {[%emt 0:00:11]} Rg6 {[%emt 0:00:03]} 35. Qh4 {[%emt 0:00:59]} Nf4 {[%emt 0:00:10]} 36. Rc2 {[%emt 0:04:54]} Qxc2 {[%emt 0:02:10]} 37. Qxd8+ {[%emt 0:00:27]} Kh7 {[%emt 0:00:05]} 0-1

[Event "21st Alekhine FIDE 2017"]
[Site "Voronezh"]
[Date "2017.06.12"]
[Round "1"]
[White "Palkovich, Denis"]
[Black "Kuzmin, Vitaly"]
[Result "1-0"]
[ECO "D00"]
[WhiteElo "2147"]
[BlackElo "1770"]
[Annotator "ChessBase"]
[PlyCount "93"]
[EventDate "2017.??.??"]
[EventType "swiss"]
[EventCountry "RUS"]
[SourceTitle "playchess.com"]
[Source "ChessBase"]
[SourceQuality "1"]
[TimeControl "40/5400+30:1800+30"]

1. d4 {[%emt 0:00:00]} d5 {[%emt 0:00:03]} 2. Bf4 {[%emt 0:00:00]} Nf6 {[%emt 0:00:08]} 3. e3 {[%emt 0:00:00]} Bf5 {[%emt 0:00:11]} 4. c4 {[%emt 0:00:14]} c6 {[%emt 0:00:37]} 5. Nc3 {[%emt 0:00:39]} e6 {[%emt 0:00:04]} 6. Qb3 {[%emt 0:00:07]} Qb6 {[%emt 0:00:10]} 7. c5 {[%emt 0:00:08]} Qxb3 {[%emt 0:00:23]} 8. axb3 {[%emt 0:00:08]} Nbd7 {[%emt 0:00:30]} 9. b4 {[%emt 0:00:09]} Be7 {[%emt 0:00:28]} 10. h3 {[%emt 0:01:11]} O-O {[%emt 0:00:08]} 11. Nf3 {[%emt 0:00:45]} a6 {[%emt 0:04:05]} 12. Nd2 {[%emt 0:00:54]} h6 {[%emt 0:00:16]} 13. Nb3 {[%emt 0:00:16]} Bd8 {[%emt 0:00:30]} 14. Na5 {[%emt 0:00:40]} Bxa5 {[%emt 0:00:20]} 15. bxa5 {[%emt 0:00:09]} Ne4 {[%emt 0:00:28]} 16. Nxe4 {[%emt 0:00:48]} Bxe4 {[%emt 0:00:28]} 17. f3 {[%emt 0:01:32]} Bg6 {[%emt 0:00:02]} 18. Ra4 {[%emt 0:00:24]} f6 {[%emt 0:00:06]} 19. Bd6 {[%emt 0:00:28]} Rf7 {[%emt 0:02:59]} 20. Rb4 {[%emt 0:00:11]} Nf8 {[%emt 0:00:01]} 21. Kd2 {[%emt 0:00:15]} Re8 {[%emt 0:00:58]} 22. f4 {[%emt 0:03:01]} Be4 {[%emt 0:09:05]} 23. Rg1 {[%emt 0:01:26]} Ng6 {[%emt 0:01:28]} 24. g3 {[%emt 0:02:12]} e5 {[%emt 0:00:28]} 25. Be2 {[%emt 0:00:21]} exd4 {[%emt 0:00:28]} 26. exd4 {[%emt 0:00:22]} Rd7 {[%emt 0:06:45]} 27. Bh5 {[%emt 0:01:18]} Ra8 {[%emt 0:01:49]} 28. Re1 {[%emt 0:00:58]} Ne7 {[%emt 0:00:29]} 29. Bg4 {[%emt 0:01:54]} f5 {[%emt 0:09:01]} 30. Bh5 {[%emt 0:00:31]} g6 {[%emt 0:09:12]} 31. Bd1 {[%emt 0:02:00]} Nc8 {[%emt 0:04:21]} 32. Be5 {[%emt 0:00:13]} Na7 {[%emt 0:14:04]} 33. g4 {[%emt 0:01:48]} Nb5 {[%emt 0:18:06]} 34. Rb3 {[%emt 0:01:09]} Rf8 {[%emt 0:03:34]} 35. Rg3 {[%emt 0:00:57]} Rh7 {[%emt 0:02:48]} 36. Reg1 {[%emt 0:02:14]} Kf7 {[%emt 0:04:51]} 37. gxf5 {[%emt 0:00:24]} Bxf5 {[%emt 0:00:11]} 38. Bc2 {[%emt 0:01:32]} Bxc2 {[%emt 0:02:01]} 39. Kxc2 {[%emt 0:00:08]} Rg8 {[%emt 0:02:45]} 40. f5 {[%emt 0:00:30]} g5 {[%emt 0:30:26]} 41. h4 {[%emt 0:30:16]} Na7 {[%emt 0:04:24]} 42. hxg5 {[%emt 0:00:33]} hxg5 {[%emt 0:00:36]} 43. Rxg5 {[%emt 0:00:12]} Rxg5 {[%emt 0:00:03]} 44. Rxg5 {[%emt 0:00:07]} Nc8 {[%emt 0:00:25]} 45. f6 {[%emt 0:00:25]} Na7 {[%emt 0:01:13]} 46. Kd2 {[%emt 0:00:34]} Nb5 {[%emt 0:00:05]} 47. Ke1 1-0

[Event "21st Alekhine FIDE 2017"]
[Site "Voronezh"]
[Date "2017.06.12"]
[Round "1"]
[White "Yashmetov, Nikolay"]
[Black "Karpuzov, Georgiy"]
[Result "1-0"]
[ECO "C71"]
[WhiteElo "2127"]
[BlackElo "1755"]
[Annotator "ChessBase"]
[PlyCount "91"]
[EventDate "2017.??.??"]
[EventType "swiss"]
[EventCountry "RUS"]
[SourceTitle "playchess.com"]
[Source "ChessBase"]
[SourceQuality "1"]
[TimeControl "40/5400+30:1800+30"]

1. e4 {[%emt 0:00:00]} e5 {[%emt 0:00:19]} 2. Nf3 {[%emt 0:00:00]} Nc6 {[%emt 0:00:19]} 3. Bb5 {[%emt 0:00:00]} a6 {[%emt 0:00:19]} 4. Ba4 {[%emt 0:00:10]} d6 {[%emt 0:00:16]} 5. d4 {[%emt 0:01:25]} b5 {[%emt 0:00:46]} 6. Bb3 {[%emt 0:01:00]} exd4 {[%emt 0:01:15]} 7. Nxd4 {[%emt 0:02:10]} Nxd4 {[%emt 0:00:19]} 8. Qxd4 {[%emt 0:00:22]} c5 {[%emt 0:00:13]} 9. Qd5 {[%emt 0:01:24]} Be6 {[%emt 0:00:10]} 10. Qc6+ {[%emt 0:00:12]} Bd7 {[%emt 0:00:02]} 11. Qd5 {[%emt 0:00:10]} c4 {[%emt 0:00:03]} 12. Bxc4 {[%emt 0:00:14]} bxc4 {[%emt 0:00:40]} 13. Qxc4 {[%emt 0:00:05]} Bb5 {[%emt 0:01:37]} 14. Qd4 {[%emt 0:00:42]} Qc7 {[%emt 0:02:48]} 15. Na3 {[%emt 0:02:57]} Qc5 {[%emt 0:02:47]} 16. Be3 {[%emt 0:04:53]} Nf6 {[%emt 0:04:11]} 17. O-O-O {[%emt 0:07:13]} Be7 {[%emt 0:01:48]} 18. f3 {[%emt 0:08:09]} O-O {[%emt 0:02:11]} 19. Qxc5 {[%emt 0:01:12]} dxc5 {[%emt 0:00:15]} 20. e5 {[%emt 0:00:13]} Ne8 {[%emt 0:01:44]} 21. Nxb5 {[%emt 0:00:47]} axb5 {[%emt 0:00:02]} 22. Rd7 {[%emt 0:00:09]} Bd8 {[%emt 0:03:05]} 23. Bxc5 {[%emt 0:01:49]} Rxa2 {[%emt 0:03:16]} 24. Kb1 {[%emt 0:01:08]} Ra8 {[%emt 0:00:03]} 25. Rhd1 {[%emt 0:06:33]} Bg5 {[%emt 0:05:05]} 26. g3 {[%emt 0:05:55]} g6 {[%emt 0:00:53]} 27. Bxf8 {[%emt 0:02:06]} Kxf8 {[%emt 0:00:13]} 28. Rb7 {[%emt 0:03:18]} Rd8 {[%emt 0:00:28]} 29. Rxd8 {[%emt 0:02:53]} Bxd8 {[%emt 0:00:02]} 30. Rxb5 {[%emt 0:00:12]} Nc7 {[%emt 0:00:55]} 31. Rb4 {[%emt 0:05:50]} h5 {[%emt 0:04:53]} 32. f4 {[%emt 0:02:18]} Ke7 {[%emt 0:01:01]} 33. c3 {[%emt 0:01:20]} Ke6 {[%emt 0:02:26]} 34. Rd4 {[%emt 0:06:57]} Be7 {[%emt 0:02:01]} 35. b4 {[%emt 0:02:43]} f6 {[%emt 0:01:10]} 36. exf6 {[%emt 0:08:47]} Bxf6 37. Rd3 Nd5 {[%emt 0:05:05]} 38. Kc2 {[%emt 0:00:59]} h4 {[%emt 0:08:35]} 39. Kb3 {[%emt 0:01:31]} Be7 {[%emt 0:02:49]} 40. c4 {[%emt 0:01:00]} Nf6 {[%emt 0:33:01]} 41. c5 {[%emt 0:32:50]} hxg3 {[%emt 0:01:13]} 42. hxg3 {[%emt 0:00:06]} Nd5 {[%emt 0:12:28]} 43. Kc4 {[%emt 0:00:35]} Nc7 {[%emt 0:00:02]} 44. b5 {[%emt 0:00:27]} g5 {[%emt 0:04:32]} 45. b6 {[%emt 0:02:09]} Na6 {[%emt 0:00:38]} 46. Kb5 {[%emt 0:00:06]} 1-0

[Event "21st Alekhine FIDE 2017"]
[Site "Voronezh"]
[Date "2017.06.12"]
[Round "1"]
[White "Bitkinin, Lenar"]
[Black "Buyukli, Egor"]
[Result "0-1"]
[ECO "A48"]
[WhiteElo "2094"]
[BlackElo "1749"]
[Annotator "NA"]
[PlyCount "145"]
[EventDate "2017.??.??"]
[EventType "swiss"]
[EventCountry "RUS"]
[SourceTitle "playchess.com"]
[Source "ChessBase"]
[SourceQuality "1"]
[TimeControl "40/5400+30:1800+30"]

1. d4 {[%emt 0:00:00]} Nf6 {[%emt 0:00:16]} 2. Nf3 {[%emt 0:00:00]} g6 {[%emt 0:00:16]} 3. c4 {[%emt 0:00:00]} Bg7 {[%emt 0:00:10]} 4. g3 {[%emt 0:00:00]} O-O {[%emt 0:00:23]} 5. Bg2 {[%emt 0:00:01]} c6 {[%emt 0:01:16]} 6. O-O {[%emt 0:00:13]} d5 {[%emt 0:01:27]} 7. Nbd2 {[%emt 0:01:39]} Nbd7 {[%emt 0:04:01]} 8. b3 {[%emt 0:03:04]} b6 {[%emt 0:12:49]} 9. Bb2 {[%emt 0:00:19]} Bb7 {[%emt 0:01:16]} 10. Rc1 {[%emt 0:01:39]} e6 {[%emt 0:02:52]} 11. Qc2 {[%emt 0:01:57]} Rc8 {[%emt 0:04:11]} 12. Rfd1 {[%emt 0:02:00]} c5 {[%emt 0:06:12]} 13. dxc5 {[%emt 0:04:37]} Nxc5 {[%emt 0:01:07]} 14. Ne5 {[%emt 0:00:45]} Qc7 {[%emt 0:05:38]} 15. cxd5 {[%emt 0:05:13]} Bxd5 {[%emt 0:01:36]} 16. e4 {[%emt 0:17:43]} Nfxe4 {[%emt 0:11:12]} 17. Nxe4 {[%emt 0:01:26]} Bxe4 {[%emt 0:05:07]} 18. Qxe4 {[%emt 0:01:58]} Nxe4 {[%emt 0:00:06]} 19. Rxc7 {[%emt 0:00:05]} Rxc7 {[%emt 0:00:09]} 20. Bxe4 {[%emt 0:00:15]} Rfc8 {[%emt 0:02:17]} 21. f4 {[%emt 0:02:23]} f6 {[%emt 0:08:47]} 22. Nc4 {[%emt 0:05:12]} f5 {[%emt 0:01:04]} 23. Bxg7 {[%emt 0:03:11]} Kxg7 {[%emt 0:00:34]} 24. Bd3 {[%emt 0:00:36]} b5 {[%emt 0:05:43]} 25. Nd6 {[%emt 0:10:21]} Rc1 {[%emt 0:01:25]} 26. Rxc1 {[%emt 0:05:54]} Rxc1+ {[%emt 0:00:08]} 27. Kf2 {[%emt 0:02:01]} b4 {[%emt 0:01:07]} 28. Ke3 {[%emt 0:01:46]} Ra1 {[%emt 0:01:06]} 29. h4 {[%emt 0:02:12]} Rxa2 {[%emt 0:00:39]} 30. Bc4 {[%emt 0:01:28]} Kf6 {[%emt 0:00:48]} 31. Kd4 {[%emt 0:03:33]} a5 {[%emt 0:02:19]} 32. Bb5 {[%emt 0:00:31]} Rg2 {[%emt 0:01:27]} 33. Nc4 {[%emt 0:00:28]} Rxg3 {[%emt 0:00:35]} 34. Nxa5 {[%emt 0:00:14]} Rg4 {[%emt 0:00:33]} 35. Ke3 {[%emt 0:00:38]} Rxh4 {[%emt 0:00:31]} 36. Bc4 {[%emt 0:00:17]} e5 {[%emt 0:01:18]} 37. fxe5+ {[%emt 0:00:12]} Kxe5 {[%emt 0:00:06]} 38. Nc6+ {[%emt 0:00:06]} Kd6 {[%emt 0:00:16]} 39. Nxb4 {[%emt 0:00:10]} g5 {[%emt 0:02:49]} 40. Nd3 {[%emt 0:00:14]} f4+ {[%emt 0:31:12]} 41. Kf3 {[%emt 0:30:10]} Rh3+ {[%emt 0:00:38]} 42. Kg4 {[%emt 0:01:10]} Rg3+ {[%emt 0:00:09]} 43. Kf5 {[%emt 0:01:24]} f3 {[%emt 0:07:23]} 44. Nf2 {[%emt 0:00:21]} Rg2 {[%emt 0:00:31]} 45. Ne4+ {[%emt 0:00:26]} Kc6 {[%emt 0:00:21]} 46. Nxg5 {[%emt 0:02:18]} f2 {[%emt 0:00:34]} 47. Nh3 {[%emt 0:00:35]} Rg3 {[%emt 0:02:47]} 48. Nf4 {[%emt 0:05:34]} Rg1 {[%emt 0:03:04]} 49. Bd5+ {[%emt 0:01:19]} Kb6 {[%emt 0:00:38]} 50. Bc4 {[%emt 0:00:09]} f1=Q {[%emt 0:00:09]} 51. Bxf1 {[%emt 0:00:05]} Rxf1 {[%emt 0:00:11]} 52. Kg5 {[%emt 0:00:08]} h6+ {[%emt 0:00:48]} 53. Kg4 {[%emt 0:00:06]} Rh1 {[%emt 0:00:10]} 54. b4 {[%emt 0:00:10]} Kb5 {[%emt 0:00:33]} 55. Kf5 {[%emt 0:00:39]} Rg1 {[%emt 0:00:31]} 56. Nh3 {[%emt 0:00:21]} Rg3 {[%emt 0:00:29]} 57. Nf4 {[%emt 0:00:13]} Kxb4 {[%emt 0:00:19]} 58. Nd5+ {[%emt 0:00:14]} Kc5 {[%emt 0:00:22]} 59. Nf6 {[%emt 0:00:05]} Kd4 {[%emt 0:00:28]} 60. Kf4 {[%emt 0:00:35]} Rg6 {[%emt 0:00:58]} 61. Nh5 {[%emt 0:00:14]} Rg1 {[%emt 0:00:47]} 62. Ng3 {[%emt 0:00:09]} Kd5 {[%emt 0:00:33]} 63. Nh5 {[%emt 0:00:22]} Ke6 {[%emt 0:00:11]} 64. Ng3 {[%emt 0:00:10]} Kf6 {[%emt 0:00:20]} 65. Ne4+ {[%emt 0:00:12]} Kg6 {[%emt 0:00:06]} 66. Kf3 {[%emt 0:00:09]} h5 {[%emt 0:00:47]} 67. Kf2 {[%emt 0:00:13]} Rg4 {[%emt 0:00:06]} 68. Nd2 {[%emt 0:00:11]} h4 {[%emt 0:00:24]} 69. Nf3 {[%emt 0:00:11]} Kf5 {[%emt 0:00:30]} 70. Nh2 {[%emt 0:00:10]} Rg7 {[%emt 0:01:09]} 71. Nf3 {[%emt 0:00:18]} h3 {[%emt 0:00:19]} 72. Kf1 {[%emt 0:00:07]} Kf4 {[%emt 0:00:15]} 73. Ke1 0-1